bitfinex-derivatives/quotes_ETHF0:USTF0_20241207
["timestamp","ask_amount","ask_price","bid_price","bid_amount"]
[1733569410753,1.29357094,3984.1,3984.0,4.11586982]
[1733569410996,0.3862,3984.1,3984.0,5.12337347]
[1733569411152,0.3862,3984.1,3984.0,5.3261012]
[1733569411451,0.3862,3984.1,3984.0,5.12337347]
[1733569411750,0.56171,3984.1,3984.0,5.12337347]
[1733569412142,0.56171,3984.1,3984.0,4.94786347]
[1733569412450,0.56171,3984.1,3984.0,3.93899728]
[1733569414348,0.56171,3984.1,3984.0,4.11450728]
[1733569414651,0.3862,3984.1,3984.0,5.12327568]
[1733569415352,3.9420903,3984.2,3984.1,0.17551]
[1733569415549,3.9420903,3984.2,3984.1,0.69865136]
[1733569416251,3.9420903,3984.2,3984.1,0.6986218]
[1733569417348,4.1175903,3984.2,3984.1,0.6986218]
[1733569417543,3.9420903,3984.2,3984.1,0.6986218]
[1733569417748,4.84946124,3984.3,3984.1,0.5231118]
[1733569417943,4.1175903,3984.2,3984.1,0.17551]
[1733569418250,4.1175903,3984.2,3984.1,0.6986318]
[1733569418750,0.1755,3984.2,3984.1,0.6986318]
[1733569419150,4.1175903,3984.2,3984.1,0.6986318]
[1733569419558,3.9420903,3984.2,3984.1,0.6986318]
[1733569419763,4.1175903,3984.2,3984.1,0.6986318]
[1733569420453,3.9420903,3984.2,3984.1,0.6986318]
[1733569420850,4.1175903,3984.2,3984.1,0.6986318]
[1733569421155,4.1175903,3984.2,3984.1,0.69866404]
[1733569421653,0.1755,3984.2,3984.1,0.69866404]
[1733569422753,4.84946124,3984.3,3984.1,0.52315404]
[1733569422960,5.02496124,3984.3,3984.2,0.37670372]
[1733569423145,1.08287094,3984.3,3984.2,0.37670372]
[1733569423352,1.08287094,3984.3,3984.2,11.05133981]
[1733569423551,1.08287094,3984.3,3984.2,5.13758377]
[1733569424310,1.08287094,3984.3,3984.2,11.05133981]
[1733569424454,1.08287094,3984.3,3984.2,6.08925604]
[1733569424666,1.08287094,3984.3,3984.2,11.05086248]
[1733569429460,1.08287094,3984.3,3984.2,11.04967191]
[1733569430360,5.02803205,3984.3,3984.2,0.37246586]
[1733569434464,5.02803205,3984.3,3984.2,0.37251655]
[1733569435366,1.08287094,3984.3,3984.2,0.37251655]
[1733569435769,5.02822759,3984.3,3984.2,0.37251655]
[1733569435970,5.02825924,3984.3,3984.2,0.37251655]
[1733569436265,1.08287094,3984.3,3984.2,0.37251655]
[1733569436470,5.02832563,3984.3,3984.2,0.37251655]
[1733569436655,5.02832563,3984.3,3984.2,0.68789666]
[1733569437159,1.08287094,3984.3,3984.2,0.37251655]
[1733569437605,1.08287094,3984.3,3984.2,5.58198607]
[1733569439167,1.08287094,3984.3,3984.2,5.58194646]
[1733569439761,1.08287094,3984.3,3984.2,11.4957025]
[1733569440767,1.08287094,3984.3,3984.2,11.4960022]
[1733569441163,1.08287094,3984.3,3984.2,5.58224616]
[1733569442271,1.08287094,3984.3,3984.2,11.4960022]
[1733569442466,1.08287094,3984.3,3984.2,0.68828886]
[1733569442681,1.08287094,3984.3,3984.2,5.58205283]
[1733569443087,0.90737094,3984.3,3984.2,5.58211909]
[1733569443875,0.90737094,3984.3,3984.2,11.49587513]
[1733569444965,1.08287094,3984.3,3984.2,11.49587513]
[1733569445369,1.08287094,3984.3,3984.2,5.58211909]
[1733569445565,0.90737094,3984.3,3984.2,0.37274278]
[1733569446769,1.08287094,3984.3,3984.2,0.37274278]
[1733569447569,5.32137742,3984.4,3984.3,0.1755]
[1733569447769,0.5689,3984.4,3984.3,0.37274278]
[1733569448575,0.3934,3984.4,3984.3,0.37274278]
[1733569449575,0.5689,3984.4,3984.3,0.37274278]
[1733569449772,0.5689,3984.4,3984.3,0.37030404]
[1733569450177,5.49687742,3984.4,3984.3,0.37030404]
[1733569450470,0.5689,3984.4,3984.3,0.37030404]
[1733569451170,5.49687742,3984.4,3984.3,0.37030404]
[1733569451774,0.5689,3984.4,3984.3,0.37030404]
[1733569451977,5.49687742,3984.4,3984.3,0.37030404]
[1733569452473,0.5689,3984.4,3984.3,5.28464894]
[1733569452672,0.5689,3984.4,3984.3,4.9143449]
[1733569452973,1.47627094,3984.4,3984.3,10.99921744]
[1733569453175,1.47627094,3984.4,3984.3,5.0898449]
[1733569453569,1.47627094,3984.4,3984.3,5.60198217]
[1733569454072,1.30077094,3984.4,3984.3,5.60198217]
[1733569455973,1.47627094,3984.4,3984.3,5.60198217]
[1733569456241,1.47627094,3984.4,3984.3,5.59774389]
[1733569456477,4.43689071,3984.4,3984.3,5.42224389]
[1733569456772,1.47627094,3984.4,3984.3,5.42224389]
[1733569457370,4.43689071,3984.4,3984.3,5.42224389]
[1733569457567,1.47627094,3984.4,3984.3,5.42224389]
[1733569457768,4.43689071,3984.4,3984.3,5.59774389]
[1733569458163,1.47627094,3984.4,3984.3,5.42224389]
[1733569459074,4.43689071,3984.4,3984.3,5.59774389]
[1733569459277,4.43689071,3984.4,3984.3,5.10968133]
[1733569459497,4.43689071,3984.4,3984.3,5.42223432]
[1733569460677,1.47627094,3984.4,3984.2,3.3833]
[1733569460874,0.1755,3984.3,3984.2,3.3833]
[1733569461076,1.30077094,3984.4,3984.2,3.5786244]
[1733569461276,1.47627094,3984.4,3984.2,3.3833]
[1733569461576,1.30077094,3984.4,3984.3,0.1755]
[1733569462574,1.47627094,3984.4,3984.3,0.1755]
[1733569462767,1.30077094,3984.4,3984.3,0.1755]
[1733569462967,1.47627094,3984.4,3984.3,0.1755]
[1733569463472,0.3934,3984.4,3984.3,0.1755]
[1733569464975,0.3934,3984.4,3984.3,1.27818403]
[1733569465170,4.93856777,3984.5,3984.4,0.1755]
[1733569465374,4.93856777,3984.5,3984.4,0.50766738]
[1733569465375,3.95074098,3984.5,3984.4,0.50766738]
[1733569465674,3.95074098,3984.6,3984.5,0.17549]
[1733569465874,3.95074098,3984.6,3984.5,5.53043749]
[1733569466479,3.95074098,3984.7,3984.6,0.17549]
[1733569466778,3.95074098,3984.7,3984.6,0.68707217]
[1733569466967,3.95074098,3984.7,3984.6,1.08827217]
[1733569467367,3.95074098,3984.7,3984.6,0.77200309]
[1733569467575,3.35569386,3985.0,3984.6,5.50882673]
[1733569467878,3.35569386,3985.0,3984.9,4.11315113]
[1733569468585,3.35569386,3985.0,3984.9,0.17547]
[1733569468777,3.35569386,3985.0,3984.9,0.37304323]
[1733569469077,3.35569386,3985.0,3984.9,4.31072436]
[1733569469282,3.35569386,3985.0,3984.9,0.37304323]
[1733569469680,0.3956,3985.0,3984.9,0.37304323]
[1733569471980,0.3956,3985.0,3984.9,4.31072436]
[1733569473377,0.3956,3985.0,3984.9,0.37304323]
[1733569474180,0.3956,3985.0,3984.9,4.31072436]
[1733569475385,0.3956,3985.0,3984.9,0.37304323]
[1733569475788,0.3956,3985.0,3984.9,0.3703999]
[1733569477481,0.3956,3985.0,3984.9,0.17547]
[1733569477681,0.3956,3985.0,3984.9,0.37037249]
[1733569478988,0.7817,3985.1,3985.0,0.17547]
[1733569479184,0.3875,3985.2,3985.0,1.27774343]
[1733569479487,0.3842,3985.5,3985.4,0.17545]
[1733569481990,0.55965,3985.5,3985.4,0.17545]
[1733569482385,0.3842,3985.5,3985.4,0.17545]
[1733569483193,5.30827333,3985.5,3985.4,0.17545]
[1733569484993,5.48372333,3985.5,3985.4,0.17545]
[1733569485189,5.48372333,3985.5,3985.1,0.3848]
[1733569485500,4.11416051,3985.2,3985.1,0.17546]
[1733569485801,0.17547,3985.2,3985.1,0.17546]
[1733569486293,5.31247333,3985.2,3985.1,0.17547]
[1733569486496,0.3884,3985.2,3985.1,0.17547]
[1733569489098,0.56386,3985.2,3985.1,0.17547]
[1733569489398,0.56386,3985.2,3984.8,0.90737094]
[1733569489399,0.56386,3985.2,3985.0,0.17547]
[1733569489596,0.3974,3985.1,3984.8,0.90737094]
[1733569489795,3.93889955,3985.0,3984.7,3.2078]
[1733569489988,0.56258,3984.9,3984.8,0.17548]
[1733569490593,0.3871,3984.9,3984.7,3.2078]
[1733569490799,0.17548,3984.8,3984.7,3.2078]
[1733569490993,0.17548,3984.8,3984.7,0.19497131]
[1733569491194,0.17548,3984.8,3984.7,0.37045131]
[1733569492298,0.3871,3984.9,3984.8,0.17548]
[1733569492497,0.3871,3984.9,3984.8,0.37057788]
[1733569492700,0.56257,3984.9,3984.8,0.37057817]
[1733569492897,0.56257,3984.9,3984.8,1.27794911]
[1733569492898,0.3871,3984.9,3984.8,1.27794911]
[1733569494195,0.3871,3984.9,3984.8,1.59028236]
[1733569495799,0.3871,3984.9,3984.8,1.59044457]
[1733569497904,0.3871,3984.9,3984.8,1.08285094]
[1733569499602,0.17547,3985.0,3984.8,0.90737094]
[1733569499806,0.17547,3985.0,3984.9,0.17547]
[1733569501105,0.97527,3985.1,3985.0,0.17547]
[1733569501603,0.17547,3985.0,3984.9,3.38327]
[1733569505404,0.17547,3985.0,3984.9,3.2078]
[1733569505609,0.17547,3985.0,3984.9,3.38327]
[1733569506102,0.17547,3985.0,3984.9,3.40299877]
[1733569506307,0.17547,3985.0,3984.9,3.2078]
[1733569507105,1.70717094,3985.1,3984.5,3.2078]
[1733569507308,0.17549,3984.6,3984.5,3.2078]
[1733569507509,5.10539242,3984.6,3984.5,3.40300495]
[1733569507707,5.89759242,3984.6,3984.5,3.40300495]
[1733569507903,5.89759242,3984.6,3984.5,3.4030069]
[1733569509001,5.89759242,3984.6,3984.5,3.5784969]
[1733569509204,5.89759242,3984.6,3984.5,3.4030069]
[1733569509406,0.96769,3984.6,3984.5,3.4030069]
[1733569509611,5.89963166,3984.6,3984.5,3.4030069]
[1733569510013,0.96769,3984.6,3984.5,3.5784969]
[1733569510204,5.89954305,3984.6,3984.5,3.5784969]
[1733569510406,0.96769,3984.6,3984.5,3.5784969]
[1733569511109,0.96769,3984.6,3984.5,3.57848748]
[1733569512312,0.96769,3984.6,3984.5,3.40299748]
[1733569512614,0.96769,3984.6,3984.5,3.57848748]
[1733569512808,0.96769,3984.6,3984.5,7.51616861]
[1733569513005,0.96769,3984.6,3984.5,7.32097113]
[1733569513707,0.96769,3984.6,3984.5,7.14548113]
[1733569514212,0.96769,3984.6,3984.5,3.2078]
[1733569514409,1.36479,3984.6,3984.5,3.2078]
[1733569515301,1.36479,3984.6,3984.2,3.93768113]
[1733569515302,2.09667094,3984.6,3984.2,3.93768113]
[1733569515511,3.86633,3984.4,3984.1,7.14548113]
[1733569515712,0.1755,3984.2,3984.1,3.2078]
[1733569517416,0.1755,3984.2,3984.1,3.38331]
[1733569517918,2.95895906,3984.4,3984.3,0.1755]
[1733569518213,0.638,3984.5,3984.4,0.1755]
[1733569520914,4.58372942,3984.5,3984.4,0.1755]
[1733569521115,0.1755,3984.4,3984.3,1.08287094]
[1733569521813,4.58372942,3984.5,3984.3,0.90737094]
[1733569522011,1.1893,3984.6,3984.1,3.586]
[1733569522012,0.1755,3984.2,3984.1,3.2078]
[1733569522411,0.1755,3984.2,3983.7,3.38333]
[1733569522412,0.17552,3983.8,3983.7,3.38333]
[1733569522623,3.13219646,3983.8,3983.7,3.38333]
[1733569523315,3.13219646,3983.8,3983.7,3.2078]
[1733569523510,2.95667646,3983.8,3983.7,3.38333]
[1733569524117,3.13219646,3983.8,3983.7,3.38333]
[1733569524816,0.17552,3983.8,3983.7,3.38333]
[1733569525020,3.13219646,3983.9,3983.7,4.29070094]
[1733569525519,2.95667646,3983.8,3983.7,4.29070094]
[1733569525718,2.95667646,3983.9,3983.7,4.11517094]
[1733569526022,2.95667646,3984.5,3983.8,0.90126611]
[1733569526212,2.95667646,3984.6,3984.0,0.90737094]
[1733569526413,2.95667646,3984.5,3984.4,0.1755]
[1733569526615,2.95667646,3984.5,3984.4,42.07446591]
[1733569526823,2.95667646,3984.6,3984.4,41.89896591]
[1733569527020,2.95667646,3984.7,3984.6,0.17549]
[1733569527217,2.95667646,3984.8,3984.7,0.17548]
[1733569527413,2.95667646,3984.9,3984.8,0.17548]
[1733569527617,2.95667646,3984.9,3984.8,0.36707497]
[1733569527812,0.58387,3985.1,3985.0,0.17547]
[1733569528124,0.4084,3985.1,3985.0,0.36706497]
[1733569528320,0.58387,3985.1,3985.0,0.36706497]
[1733569529323,0.4084,3985.1,3985.0,0.36706497]
[1733569529818,0.58387,3985.1,3985.0,0.36706497]
[1733569530023,0.4084,3985.1,3985.0,0.36706497]
[1733569531322,0.4084,3985.1,3985.0,0.36695581]
[1733569531634,0.4084,3985.1,3985.0,4.30463694]
[1733569532119,0.58387,3985.1,3985.0,4.30463694]
[1733569532619,0.4084,3985.1,3985.0,4.30463694]
[1733569534127,0.4084,3985.1,3985.0,0.36695581]
[1733569534319,0.4084,3985.1,3985.0,0.19148581]
[1733569534524,0.4084,3985.1,3985.0,0.19144507]
[1733569534720,0.58387,3985.1,3985.0,0.19144507]
[1733569534927,0.58387,3985.1,3985.0,0.36691507]
[1733569535325,0.58387,3985.1,3985.0,0.19144507]
[1733569535627,0.58387,3985.1,3985.0,0.36691507]
[1733569535832,0.58387,3985.1,3985.0,0.19144507]
[1733569536133,1.49124094,3985.1,3985.0,0.19144507]
[1733569536328,0.17547,3985.0,3984.8,0.17548]
[1733569536632,4.11645323,3985.0,3984.8,0.17548]
[1733569537136,4.11645323,3984.9,3984.8,0.17548]
[1733569537429,0.17547,3984.9,3984.8,0.17548]
[1733569537631,4.11645323,3984.9,3984.8,0.17548]
[1733569538035,3.94098323,3984.9,3984.8,3.38328]
[1733569538429,0.17547,3984.9,3984.8,3.38328]
[1733569538728,4.11645323,3985.0,3984.8,3.38328]
[1733569538933,0.17547,3984.9,3984.8,3.2078]
[1733569539130,0.17547,3984.9,3984.8,3.38328]
[1733569539331,4.11645323,3984.9,3984.8,3.38328]
[1733569539530,0.17547,3984.9,3984.8,3.38328]
[1733569540033,0.17547,3984.9,3984.8,3.2078]
[1733569540433,0.17548,3984.7,3984.6,0.17549]
[1733569541825,0.17549,3984.7,3984.6,0.17549]
[1733569542927,0.58329,3984.7,3984.6,3.93768113]
[1733569543327,0.58329,3984.7,3984.6,4.12900853]
[1733569543731,0.58329,3984.7,3984.6,0.1913274]
[1733569544135,0.17549,3984.5,3984.4,3.93768113]
[1733569544430,0.17549,3984.5,3984.4,0.1913686]
[1733569544635,0.1755,3984.3,3984.2,3.93768113]
[1733569544836,0.1755,3984.3,3984.2,4.12905887]
[1733569545737,0.1755,3984.3,3984.2,4.29628543]
[1733569545938,0.1755,3984.3,3984.2,4.29620701]
[1733569546138,0.1755,3984.4,3984.3,0.1755]
[1733569546440,0.1755,3984.4,3984.3,4.1204225]
[1733569546631,0.1755,3984.4,3984.3,4.2959225]
[1733569546842,0.1755,3984.4,3984.3,4.1204225]
[1733569548137,0.1755,3984.4,3984.3,4.2959225]
[1733569548350,0.1755,3984.4,3984.3,0.19137774]
[1733569548542,0.1755,3984.4,3984.3,4.2959225]
[1733569549048,0.1755,3984.4,3984.3,0.19137774]
[1733569549545,0.1755,3984.4,3984.3,4.2959225]
[1733569549741,0.1755,3984.4,3984.3,4.1204225]
[1733569551131,0.1755,3984.4,3984.3,4.11946877]
[1733569551332,0.1755,3984.4,3984.3,0.19042401]
[1733569554339,1.28577094,3984.5,3984.3,0.19053423]
[1733569554545,1.28577094,3984.5,3984.2,3.92904476]
[1733569554744,1.28577094,3984.5,3984.3,0.19053004]
[1733569554938,1.28577094,3984.5,3984.4,0.19052693]
[1733569555138,1.46126094,3984.5,3984.4,0.19052693]
[1733569555335,0.17549,3984.6,3984.4,0.36601693]
[1733569555543,1.1903,3984.5,3984.4,0.17549]
[1733569555751,1.1903,3984.5,3984.4,0.36604878]
[1733569555752,1.36579,3984.5,3984.4,0.36604878]
[1733569555941,1.36579,3984.5,3984.4,40.99055878]
[1733569557045,1.36579,3984.5,3984.4,41.16605878]
[1733569557545,1.36579,3984.5,3984.4,0.19055878]
[1733569557749,1.36579,3984.5,3984.4,0.19055153]
[1733569558043,4.32150376,3984.5,3984.4,0.19055153]
[1733569558248,4.32150376,3984.5,3984.4,0.36605153]
[1733569558445,4.32150376,3984.5,3984.4,0.1755]
[1733569558647,2.95571376,3984.5,3984.2,0.90737094]
[1733569558838,2.95571376,3984.5,3984.4,0.1755]
[1733569559044,2.95571376,3984.7,3984.6,0.17549]
[1733569559350,2.95571376,3984.8,3984.5,0.90737094]
[1733569559548,2.95571376,3984.8,3984.7,0.17548]
[1733569561739,2.95571376,3984.9,3984.6,0.4034]
[1733569562052,2.95571376,3985.0,3984.9,0.17547]
[1733569562349,2.95571376,3985.1,3985.0,0.17547]
[1733569564253,3.13118376,3985.1,3985.0,0.17547]
[1733569565254,3.13118376,3985.1,3985.0,4.10451476]
[1733569565255,0.17547,3985.1,3985.0,4.10451476]
[1733569565443,0.17547,3985.1,3985.0,4.59502494]
[1733569565847,0.4159,3985.2,3985.0,4.41955494]
[1733569566051,0.59136,3985.2,3985.1,0.3641183]
[1733569566353,0.59136,3985.2,3985.1,0.17547]
[1733569566651,0.59136,3985.2,3985.1,0.36410832]
[1733569567742,0.4159,3985.2,3985.1,0.36410832]
[1733569568354,0.59136,3985.2,3985.1,0.36410832]
[1733569568754,0.4159,3985.2,3985.1,0.36410832]
[1733569569252,0.4159,3985.2,3985.1,4.29315308]
[1733569569453,0.4159,3985.2,3985.1,4.59502706]
[1733569569753,0.4159,3985.2,3985.1,4.29317167]
[1733569571052,0.4159,3985.2,3985.1,5.20054261]
[1733569571258,0.17545,3985.6,3985.5,0.17544]
[1733569571552,0.4128,3985.6,3985.5,0.17544]
[1733569572955,0.4128,3985.6,3985.5,1.08281094]
[1733569573259,8.13996178,3985.7,3985.5,0.90737094]
[1733569573459,4.93216178,3985.7,3985.6,0.17544]
[1733569573853,4.93216178,3985.8,3985.6,0.17544]
[1733569574054,5.10759178,3985.8,3985.7,0.17544]
[1733569574260,4.93216178,3985.8,3985.7,0.17544]
[1733569574457,5.10759178,3985.8,3985.7,0.17544]
[1733569575354,0.17543,3985.8,3985.7,0.17544]
[1733569575755,4.93216178,3985.8,3985.7,0.17544]
[1733569576154,5.88969178,3985.9,3985.6,40.8]
[1733569576362,5.88969178,3985.9,3985.8,0.17543]
[1733569577263,5.71426178,3985.9,3985.8,0.17543]
[1733569577457,3.93874573,3985.9,3985.8,0.17543]
[1733569577658,4.35174573,3986.0,3985.9,0.17543]
[1733569577957,0.413,3986.0,3985.9,1.08280094]
[1733569579161,3.36539012,3986.0,3985.9,1.08280094]
[1733569580158,0.413,3986.0,3985.9,1.08280094]
[1733569580568,0.7972,3986.3,3985.9,0.90737094]
[1733569580767,0.7972,3986.3,3986.2,0.17542]
[1733569580963,0.7972,3986.3,3986.2,3.38322]
[1733569581469,0.4128,3986.4,3986.2,3.39587121]
[1733569581771,0.4128,3986.4,3986.3,1.08278094]
[1733569582062,0.81,3986.8,3986.7,0.17539]
[1733569582464,0.81,3986.8,3986.5,0.90737094]
[1733569582669,0.1754,3986.6,3986.5,0.1754]
[1733569583274,0.1754,3986.7,3986.6,0.1754]
[1733569583471,0.5621,3986.7,3986.6,0.1754]
[1733569583865,0.3867,3986.7,3986.6,0.1754]
[1733569584366,0.5621,3986.7,3986.6,0.1754]
[1733569584563,0.3867,3986.7,3986.6,0.1754]
[1733569586373,0.56209,3986.7,3986.6,0.1754]
[1733569586569,0.56209,3986.7,3986.5,0.1754]
[1733569586771,0.3867,3986.7,3986.5,0.1754]
[1733569586970,0.3867,3986.7,3986.6,0.1754]
[1733569586971,0.5621,3986.7,3986.6,0.1754]
[1733569589179,0.1754,3986.6,3986.5,0.1754]
[1733569589377,0.5621,3986.7,3986.5,0.1754]
[1733569589675,0.5621,3986.7,3986.3,0.90737094]
[1733569590176,0.5621,3986.7,3986.6,0.1754]
[1733569590576,0.3867,3986.7,3986.6,0.1754]
[1733569590775,0.56209,3986.7,3986.6,0.1754]
[1733569591075,0.56209,3986.7,3986.3,0.90737094]
[1733569591272,0.5621,3986.7,3986.6,0.1754]
[1733569591483,0.17541,3986.4,3986.3,1.08278094]
[1733569591675,1.29407094,3986.7,3986.3,1.08278094]
[1733569591982,0.17541,3986.5,3986.3,1.08278094]
[1733569592881,1.29407094,3986.7,3986.3,1.08278094]
[1733569593181,0.17541,3986.5,3986.3,1.08278094]
[1733569593479,0.17541,3986.5,3986.3,0.90737094]
[1733569593780,1.29407094,3986.7,3986.3,1.08278094]
[1733569594378,0.17541,3986.5,3986.3,0.90737094]
[1733569594674,1.29407094,3986.7,3986.3,0.90737094]
[1733569594870,0.1754,3986.6,3986.5,0.1754]
[1733569596976,0.3867,3986.7,3986.3,0.90737094]
[1733569597177,0.17541,3986.4,3986.3,1.08278094]
[1733569597380,0.17541,3986.5,3986.4,0.17541]
[1733569598273,0.17541,3986.4,3986.3,0.90737094]
[1733569598472,0.17541,3986.5,3986.3,0.36164092]
[1733569598678,0.17541,3986.5,3986.3,1.08278094]
[1733569598878,0.3867,3986.7,3986.3,1.08278094]
[1733569599175,0.3867,3986.7,3986.3,0.90737094]
[1733569599385,0.3867,3986.7,3986.3,1.08278094]
[1733569599676,0.17541,3986.5,3986.3,1.08278094]
[1733569599875,0.1754,3986.6,3986.4,0.17541]
[1733569600081,0.1754,3986.5,3986.4,0.17541]
[1733569600274,0.1754,3986.5,3986.4,0.36171444]
[1733569600468,0.1754,3986.6,3986.4,0.18630444]
[1733569600673,0.1754,3986.6,3986.5,0.1754]
[1733569600880,0.1754,3986.6,3986.5,0.90737094]
[1733569601281,0.1754,3986.6,3986.5,1.08277094]
[1733569601476,0.1754,3986.6,3986.5,1.26912121]
[1733569601681,0.1754,3986.6,3986.5,1.26911067]
[1733569603575,0.1754,3986.6,3986.5,1.09371067]
[1733569603774,0.1754,3986.6,3986.5,1.26911067]
[1733569603982,0.1754,3986.6,3986.5,1.09371067]
[1733569604282,0.1754,3986.6,3986.5,1.26911067]
[1733569605485,0.1754,3986.6,3986.5,1.09371067]
[1733569607986,0.1754,3986.6,3986.5,1.26911067]
[1733569608288,0.1754,3986.6,3986.5,1.09371067]
[1733569608696,0.1754,3986.6,3986.5,1.26911067]
[1733569608878,0.5621,3986.7,3986.6,0.1754]
[1733569609192,0.5621,3986.7,3986.6,0.18633973]
[1733569609391,0.81,3986.8,3986.7,0.17539]
[1733569609583,0.4001,3987.0,3986.7,1.09371067]
[1733569609882,0.57548,3987.0,3986.9,0.17539]
[1733569610075,0.57548,3987.0,3986.9,0.36172973]
[1733569610076,0.4001,3987.0,3986.9,0.36172973]
[1733569610279,0.57548,3987.0,3986.9,0.36172973]
[1733569610479,0.57548,3987.0,3986.9,1.26910067]
[1733569610480,0.4001,3987.0,3986.9,1.26910067]
[1733569610702,0.57548,3987.0,3986.9,1.08276094]
[1733569611797,0.57548,3987.0,3986.9,1.2770888]
[1733569612814,3.52659994,3987.0,3986.9,1.2770888]
[1733569613405,3.52645249,3987.0,3986.9,1.2770888]
[1733569614204,0.57548,3987.0,3986.9,1.2770888]
[1733569615712,0.57548,3987.0,3986.9,1.08276094]
[1733569615891,0.4001,3987.0,3986.9,1.08276094]
[1733569616100,2.95164714,3987.0,3986.9,1.08276094]
[1733569616287,2.95164714,3987.0,3986.9,1.27251804]
[1733569616495,2.95196485,3987.1,3987.0,0.17538]
[1733569616685,2.95196485,3987.2,3987.1,0.17538]
[1733569616985,0.17537,3987.2,3987.1,1.08275094]
[1733569617685,5.29191573,3987.3,3987.2,0.17537]
[1733569618286,0.17537,3987.2,3987.1,1.08274094]
[1733569618690,0.17537,3987.2,3987.1,1.57415499]
[1733569619092,1.35317,3987.3,3987.2,0.17537]
[1733569619291,1.35317,3987.3,3987.2,0.1889957]
[1733569620591,0.17539,3986.9,3986.8,1.08276094]
[1733569620789,1.1778,3987.3,3986.8,1.39878062]
[1733569620989,1.1778,3987.3,3986.9,0.18899402]
[1733569621214,0.17538,3987.1,3987.0,0.18899402]
[1733569621596,1.1778,3987.3,3987.0,1.09636496]
[1733569621791,0.17538,3987.2,3987.1,0.36437402]
[1733569622394,3.2078,3987.6,3987.5,0.17536]
[1733569622693,3.2078,3987.6,3987.5,1.27172496]
[1733569622996,3.2078,3987.6,3987.5,42.07172496]
[1733569623889,0.96535,3987.8,3987.7,0.17535]
[1733569624414,0.96535,3987.8,3987.7,0.36416031]
[1733569624589,0.96535,3987.8,3987.7,0.18881031]
[1733569624896,0.79,3987.8,3987.5,44.91517094]
[1733569625089,0.79,3987.8,3987.7,0.17535]
[1733569625090,0.96535,3987.8,3987.7,0.17535]
[1733569625295,0.96535,3987.8,3987.7,0.36346411]
[1733569625500,0.96535,3987.8,3987.7,0.18811411]
[1733569625901,0.17535,3987.7,3987.6,0.17535]
[1733569626101,3.12896391,3987.7,3987.6,0.17535]
[1733569626396,3.12896391,3987.7,3987.6,0.17536]
[1733569626796,2.95361391,3987.7,3987.5,3.2078]
[1733569626998,2.95328329,3987.7,3987.6,0.90737094]
[1733569627198,2.95328329,3987.7,3987.6,1.08273094]
[1733569627495,3.12863329,3987.7,3987.6,0.90737094]
[1733569627701,3.12863329,3987.7,3987.6,1.08273094]
[1733569628095,0.17535,3987.7,3987.6,1.08273094]
[1733569628507,3.91863329,3987.8,3987.7,0.17535]
[1733569628993,3.74328329,3987.8,3987.7,0.17535]
[1733569629199,0.79,3987.8,3987.7,0.17535]
[1733569632908,0.79,3987.8,3987.7,0.36258844]
[1733569634408,0.79,3987.8,3987.7,0.36258779]
[1733569636911,0.96535,3987.8,3987.7,0.36258779]
[1733569637105,0.79,3987.8,3987.7,0.36258779]
[1733569637609,0.79,3987.8,3987.7,0.17535]
[1733569637816,0.79,3987.8,3987.7,0.36196573]
[1733569639109,0.79,3987.8,3987.7,0.66066125]
[1733569639814,0.79,3987.8,3987.7,0.36196573]
[1733569641110,0.79,3987.8,3987.7,0.36017221]
[1733569642309,0.15752405,3987.8,3987.7,0.36017221]
[1733569642613,0.3942,3987.9,3987.8,0.17535]
[1733569642820,0.3942,3987.9,3987.8,0.36017221]
[1733569644111,0.3942,3987.9,3987.8,1.26754315]
[1733569644314,0.3942,3987.9,3987.8,1.26700659]
[1733569645121,0.3942,3987.9,3987.8,0.65455961]
[1733569645314,0.56954,3987.9,3987.8,0.18428565]
[1733569646223,0.3942,3987.9,3987.8,0.1837437]
[1733569646721,0.56954,3987.9,3987.8,0.1837437]
[1733569647518,3.52282329,3987.9,3987.8,0.18377336]
[1733569647914,3.52282329,3987.9,3987.6,0.90737094]
[1733569647915,3.34748329,3987.9,3987.6,1.08272094]
[1733569648115,0.17535,3987.7,3987.6,1.08272094]
[1733569648414,0.17535,3987.7,3987.6,0.90737094]
[1733569649418,0.17535,3987.7,3987.6,4.11517094]
[1733569650125,0.17535,3987.7,3987.6,4.29053094]
[1733569650322,3.12863329,3987.7,3987.6,4.11517094]
[1733569652030,3.12863329,3987.7,3987.6,4.29053094]
[1733569653325,3.12863329,3987.7,3987.6,4.11517094]
[1733569653528,0.17535,3987.7,3987.6,4.11517094]
[1733569654828,0.17535,3987.7,3987.6,4.29053094]
[1733569655331,0.17535,3987.7,3987.6,1.08273094]
[1733569655527,0.17535,3987.7,3987.6,5.00442917]
[1733569656038,0.17535,3987.7,3987.6,5.48293026]
[1733569656336,0.3912,3987.8,3987.6,5.30757026]
[1733569656537,0.56655,3987.8,3987.7,0.65385109]
[1733569656732,0.56655,3987.8,3987.7,0.47850109]
[1733569657235,0.17535,3987.7,3987.6,4.82906917]
[1733569657423,0.17535,3987.7,3987.6,5.30757167]
[1733569658132,0.17535,3987.7,3987.6,6.32908846]
[1733569658338,0.17535,3987.7,3987.6,1.38587344]
[1733569658534,0.17535,3987.7,3987.6,6.32909939]
[1733569659035,0.17535,3987.7,3987.6,1.38587344]
[1733569659332,0.17535,3987.7,3987.6,5.30970045]
[1733569660741,0.17535,3987.7,3987.6,6.3309204]
[1733569662131,0.17535,3987.7,3987.6,12.2374421]
[1733569662531,0.17535,3987.7,3987.6,5.31223902]
[1733569663136,0.59065,3987.7,3987.6,4.83372272]
[1733569664448,0.59065,3987.7,3987.6,4.83411567]
[1733569665138,0.59065,3987.7,3987.6,5.85483925]
[1733569665545,0.59065,3987.7,3987.6,5.85482434]
[1733569668146,0.59065,3987.7,3987.6,11.76134604]
[1733569670241,0.59065,3987.7,3987.6,11.93670604]
[1733569670449,0.59065,3987.7,3987.6,11.76134604]
[1733569670648,0.59065,3987.7,3987.6,1.08273094]
[1733569670849,5.52281178,3987.7,3987.6,0.90737094]
[1733569671049,0.59065,3987.7,3987.6,0.90737094]
[1733569671349,0.59065,3987.7,3987.6,1.38233675]
[1733569674155,5.52281178,3987.7,3987.6,1.38233675]
[1733569676946,5.52281178,3987.7,3987.6,1.37918984]
[1733569677654,0.59065,3987.7,3987.6,6.32968186]
[1733569678258,0.59065,3987.7,3987.6,6.03654232]
[1733569678954,0.17535,3987.8,3987.7,0.17535]